lending/lending_fUSD_20240110
["ID","MTS","AMOUNT","RATE_DAILY","PERIOD"]
[311090899,1704901868631,-500.0,0.00032054,2]
[311090900,1704901868642,-540.69,0.00032054,2]
[311090901,1704901868653,-500.0,0.00032054,2]
[311090902,1704901868663,-500.0,0.00032054,2]
[311090903,1704901868674,-531.22,0.00032054,2]
[311090904,1704901868685,-822.79,0.00032054,2]
[311090905,1704901868696,-949.96,0.00032054,2]
[311090906,1704901868706,-561.93,0.00032054,2]
[311090907,1704901868716,-841.87,0.00032054,2]
[311090908,1704901868727,-500.0,0.00032054,2]
[311090909,1704901868737,-4149.02,0.00032054,2]
[311090910,1704901868748,-500.0,0.00032054,2]
[311090911,1704901868759,-500.0,0.00032054,2]
[311090912,1704901868774,-500.0,0.00032054,2]
[311090913,1704901868786,-588.0,0.00032054,2]
[311090914,1704901868795,-1144.17,0.00032054,2]
[311090915,1704901868805,-500.0,0.00032054,2]
[311090916,1704901868823,-1384.54,0.00032054,2]
[311090917,1704901868846,-2853.73,0.00032054,2]
[311090918,1704901868870,-1585.1,0.00032054,2]
[311090919,1704901868893,-565.73,0.00032054,2]
[311090920,1704901868914,-518.12,0.00032054,2]
[311090921,1704901868939,-546.42,0.00032054,2]
[311090922,1704901868966,-500.0,0.00032054,2]
[311090923,1704901868977,-5771.71,0.00032054,2]
[311090924,1704901868987,-500.0,0.00032054,2]
[311090925,1704901868996,-1094.06,0.00032054,2]
[311090926,1704901869006,-1075.13,0.00032054,2]
[311090927,1704901869017,-500.0,0.00032054,2]
[311090928,1704901869028,-500.0,0.00032054,2]
[311090929,1704901869050,-1529.8,0.00032054,2]
[311090930,1704901869068,-704.92,0.00032054,2]
[311090931,1704901869083,-6554.84,0.00032054,2]
[311090932,1704901869095,-500.0,0.00032054,2]
[311090933,1704901869298,-500.0,0.00032054,2]
[311090934,1704901869310,-500.0,0.00032054,2]
[311090935,1704901869322,-515.73,0.00032054,2]
[311090936,1704901869340,-606.81,0.00032054,2]
[311090937,1704901869351,-3847.89,0.00032054,2]
[311090938,1704901869362,-500.0,0.00032054,2]
[311090939,1704901869374,-1237.27,0.00032054,2]
[311090940,1704901869384,-1873.06,0.00032054,2]
[311090941,1704901869395,-500.0,0.00032054,2]
[311090942,1704901869405,-722.18,0.00032054,2]
[311090943,1704901869415,-682.55,0.00032054,2]
[311090944,1704901869425,-890.2,0.00032054,2]
[311090945,1704901869435,-1162.53,0.00032054,2]
[311090946,1704901869454,-500.0,0.00032054,2]
[311090947,1704901869464,-500.0,0.00032054,2]
[311090948,1704901869474,-1171.63,0.00032054,2]
[311090949,1704901869484,-589.12,0.00032054,2]
[311090950,1704901869494,-1149.89,0.00032054,2]
[311090951,1704901869504,-838.5,0.00032054,2]
[311090952,1704901869517,-1201.37,0.00032054,2]
[311090953,1704901869527,-1798.18,0.00032054,2]
[311090954,1704901869537,-596.51,0.00032054,2]
[311090955,1704901869547,-1002.66,0.00032054,2]
[311090956,1704901869557,-1893.93,0.00032054,2]
[311090957,1704901869567,-860.47,0.00032054,2]
[311090958,1704901869577,-500.0,0.00032054,2]
[311090959,1704901869588,-633.99,0.00032054,2]
[311090960,1704901869598,-542.38,0.00032054,2]
[311090961,1704901869609,-3386.41,0.00032054,2]
[311090962,1704901869619,-500.0,0.00032054,2]
[311090963,1704901869629,-756.19,0.00032054,2]
[311090964,1704901869639,-500.0,0.00032054,2]
[311090965,1704901869650,-816.45,0.00032054,2]
[311090966,1704901869660,-3242.4,0.00032054,2]
[311090967,1704901869670,-500.0,0.00032054,2]
[311090968,1704901869680,-500.0,0.00032054,2]
[311090969,1704901869690,-1694.82,0.00032054,2]
[311090970,1704901869700,-500.0,0.00032054,2]
[311090971,1704901869711,-1281.58,0.00032054,2]
[311090972,1704901869721,-500.0,0.00032054,2]
[311090973,1704901869740,-247.22115209,0.00032059,2]
[311090974,1704901869751,-3000.0,0.0003206,2]
[311090975,1704901869780,-3000.0,0.0003207,2]
[311090976,1704901869796,-3938.383933,0.0003208,2]
[311090977,1704901869808,-339.16,0.0003215,2]
[311090978,1704901869819,-1919.71483849,0.00032192,4]
[311090979,1704901869831,-500.0,0.00032251,2]
[311090980,1704901869842,-157.20762221,0.000323,4]
[311090981,1704901869853,-262.7,0.00032319,2]
[311090982,1704901869865,-649.73,0.00032328,2]
[311090983,1704901869876,-500.0,0.00032328,2]
[311090984,1704901869889,-500.0,0.00032328,2]
[311090985,1704901869900,-500.0,0.00032328,2]
[311090986,1704901869915,-500.0,0.00032328,2]
[311090987,1704901869926,-500.0,0.00032328,2]
[311090988,1704901869936,-580.78,0.00032328,2]
[311090989,1704901869967,-500.0,0.00032328,2]
[311090990,1704901869993,-500.0,0.00032328,2]
[311090991,1704901870004,-500.0,0.00032328,2]
[311090992,1704901870026,-500.0,0.00032328,2]
[311090993,1704901870037,-500.0,0.00032328,2]
[311090994,1704901870049,-624.51,0.00032328,2]
[311090995,1704901870078,-769.6,0.00032328,2]
[311090996,1704901870090,-500.0,0.00032328,2]
[311090997,1704901870103,-646.9,0.00032328,2]
[311090998,1704901870114,-530.33,0.00032328,2]
[311090999,1704901870126,-815.38,0.00032328,2]
[311091000,1704901870138,-500.0,0.00032328,2]
[311091001,1704901870150,-500.0,0.00032328,2]
[311091002,1704901870162,-500.0,0.00032328,2]
[311091003,1704901870173,-500.0,0.00032328,2]
[311091004,1704901870183,-500.0,0.00032328,2]
[311091005,1704901870194,-603.48,0.00032328,2]
[311091006,1704901870205,-755.23,0.00032328,2]
[311091007,1704901870214,-500.0,0.00032328,2]
[311091008,1704901870226,-550.99,0.00032328,2]
[311091009,1704901870236,-500.0,0.00032328,2]
[311091010,1704901870245,-500.0,0.00032328,2]
[311091011,1704901870255,-500.0,0.00032328,2]
[311091012,1704901870267,-589.29619281,0.00032328,2]
[311091013,1704901870277,-500.0,0.00032328,2]
[311091014,1704901870287,-500.0,0.00032328,2]
[311091015,1704901870297,-500.0,0.00032328,2]
[311091016,1704901870307,-500.0,0.00032328,2]
[311091017,1704901870317,-500.0,0.00032328,2]
[311091018,1704901870328,-800.14,0.00032328,2]
[311091019,1704901870338,-500.0,0.00032328,2]
[311091020,1704901870348,-500.0,0.00032328,2]
[311091021,1704901870358,-707.25,0.00032328,2]
[311091022,1704901870368,-440.07751478,0.00032328,2]
[311091023,1704901870378,-520.54,0.00032328,2]
[311091024,1704901870388,-500.0,0.00032328,2]
[311091025,1704901870398,-405.85884957,0.00032328,2]
[311091026,1704901870408,-500.0,0.00032328,2]
[311091027,1704901870419,-150.69252452,0.00032328,2]
[311091028,1704901870429,-500.0,0.00032328,2]
[311091029,1704901870439,-672.75,0.00032328,2]
[311091030,1704901870449,-528.46,0.00032328,2]
[311091031,1704901870459,-500.0,0.00032328,2]
[311091032,1704901870469,-500.0,0.00032328,2]
[311091033,1704901870479,-500.0,0.00032328,2]
[311091034,1704901870488,-1198.47,0.00032328,2]
[311091035,1704901870498,-272.14908598,0.00032328,2]
[311091036,1704901870508,-500.0,0.00032328,2]
[311091037,1704901870521,-632.59,0.00032328,2]
[311091038,1704901870531,-1056.6,0.00032328,2]
[311091039,1704901870541,-500.0,0.00032328,2]
[311091040,1704901870552,-500.0,0.00032328,2]
[311091041,1704901870562,-500.0,0.00032328,2]
[311091042,1704901870572,-500.0,0.00032328,2]
[311091043,1704901870582,-500.0,0.00032328,2]
[311091044,1704901870592,-500.0,0.00032328,2]
[311091045,1704901870602,-500.0,0.00032328,2]
[311091046,1704901870613,-186.62445925,0.00032328,2]
[311091047,1704901870623,-586.76,0.00032328,2]
[311091048,1704901870634,-731.92,0.00032328,2]
[311091049,1704901870644,-9210.75,0.00032328,2]
[311091050,1704901870654,-500.0,0.00032328,2]
[311091051,1704901870665,-500.0,0.00032328,2]
[311091052,1704901870675,-500.0,0.00032328,2]
[311091053,1704901870685,-809.77,0.00032328,2]
[311091054,1704901870695,-663.73,0.00032328,2]
[311091055,1704901870706,-500.0,0.00032328,2]
[311091056,1704901870716,-662.54,0.00032328,2]
[311091057,1704901870725,-500.0,0.00032328,2]
[311091058,1704901870735,-500.0,0.00032328,2]
[311091059,1704901870744,-353.72433413,0.00032328,2]
[311091060,1704901870755,-534.71,0.00032328,2]
[311091061,1704901870767,-6627.1,0.00032328,2]
[311091062,1704901870777,-1891.17,0.00032328,2]
[311091063,1704901870787,-500.0,0.00032328,2]
[311091064,1704901870797,-1534.85,0.00032328,2]
[311091065,1704901870807,-500.0,0.00032328,2]
[311091066,1704901870817,-2924.88,0.00032328,2]
[311091067,1704901870827,-500.0,0.00032328,2]
[311091068,1704901870837,-500.0,0.00032328,2]
[311091069,1704901870848,-500.0,0.00032328,2]
[311091070,1704901870858,-500.0,0.00032328,2]
[311091071,1704901870869,-765.82,0.00032328,2]
[311091072,1704901870880,-500.0,0.00032328,2]
[311091073,1704901870890,-500.0,0.00032328,2]
[311091074,1704901870900,-3449.62,0.00032328,2]
[311091075,1704901870910,-500.0,0.00032328,2]
[311091076,1704901870920,-750.66,0.00032328,2]
[311091077,1704901870931,-579.7,0.00032328,2]
[311091078,1704901870941,-959.31,0.00032328,2]
[311091079,1704901870951,-7311.05,0.00032328,2]
[311091080,1704901870961,-500.0,0.00032328,2]
[311091081,1704901870973,-1065.45,0.00032328,2]
[311091082,1704901870983,-1035.64,0.00032328,2]
[311091083,1704901870993,-500.0,0.00032328,2]
[311091084,1704901871004,-500.0,0.00032328,2]
[311091085,1704901871014,-500.0,0.00032328,2]
[311091086,1704901871025,-500.0,0.00032328,2]
[311091087,1704901871036,-2187.38,0.00032328,2]
[311091088,1704901871047,-500.0,0.00032328,2]
[311091089,1704901871057,-702.32,0.00032328,2]
[311091090,1704901871067,-500.0,0.00032328,2]
[311091091,1704901871077,-500.0,0.00032328,2]
[311091092,1704901871087,-500.0,0.00032328,2]
[311091093,1704901871097,-500.0,0.00032328,2]
[311091094,1704901871107,-1173.1,0.00032328,2]
[311091095,1704901871116,-977.57,0.00032328,2]
[311091096,1704901871127,-500.0,0.00032328,2]
[311091097,1704901871137,-500.0,0.00032328,2]
[311091098,1704901871147,-500.0,0.00032328,2]
[311091099,1704901871158,-905.27,0.00032328,2]
[311091100,1704901871167,-2184.67,0.00032328,2]
[311091101,1704901871181,-539.72,0.00032328,2]
[311091102,1704901871194,-500.0,0.00032328,2]
[311091103,1704901871210,-2851.32,0.00032328,2]
[311091104,1704901871219,-554.29,0.00032328,2]
[311091105,1704901871228,-500.0,0.00032328,2]
[311091106,1704901871238,-1084.11,0.00032328,2]
[311091107,1704901871259,-743.97,0.00032328,2]
[311091108,1704901871277,-2290.02,0.00032328,2]
[311091109,1704901871287,-500.0,0.00032328,2]
[311091110,1704901871296,-652.69,0.00032328,2]
[311091111,1704901871306,-3550.06,0.00032328,2]
[311091112,1704901871316,-500.0,0.00032328,2]
[311091113,1704901871326,-500.0,0.00032328,2]
[311091114,1704901871336,-2468.23,0.00032328,2]
[311091115,1704901871346,-741.58,0.00032328,2]
[311091116,1704901871356,-1013.12,0.00032328,2]
[311091117,1704901871366,-2755.49,0.00032328,2]
[311091118,1704901871376,-1367.5,0.00032328,2]
[311091119,1704901871386,-500.0,0.00032328,2]
[311091120,1704901871396,-523.18,0.00032328,2]
[311091121,1704901871405,-606.41,0.00032328,2]
[311091122,1704901871415,-1010.49,0.00032328,2]
[311091123,1704901871426,-1214.0,0.00032328,2]
[311091124,1704901871435,-500.0,0.00032328,2]
[311091125,1704901871446,-500.0,0.00032328,2]
[311091126,1704901871456,-1052.82,0.00032328,2]
[311091127,1704901871465,-1111.49,0.00032328,2]
[311091128,1704901871475,-22537.3,0.00032328,2]
[311091129,1704901871485,-517.3,0.00032328,2]
[311091130,1704901871495,-652.84,0.00032328,2]
[311091131,1704901871505,-500.0,0.00032328,2]
[311091132,1704901871516,-1027.93,0.00032328,2]
[311091133,1704901871525,-500.0,0.00032328,2]
[311091134,1704901871534,-619.25,0.00032328,2]
[311091135,1704901871544,-500.0,0.00032328,2]
[311091136,1704901871555,-301.45032401,0.00032328,2]
[311091137,1704901871565,-540.69,0.00032328,2]
[311091138,1704901871575,-500.0,0.00032328,2]
[311091139,1704901871585,-500.0,0.00032328,2]
[311091140,1704901871595,-531.22,0.00032328,2]
[311091141,1704901871605,-822.79,0.00032328,2]
[311091142,1704901871615,-949.96,0.00032328,2]
[311091143,1704901871625,-561.93,0.00032328,2]
[311091144,1704901871636,-841.87,0.00032328,2]
[311091145,1704901871646,-500.0,0.00032328,2]
[311091146,1704901871656,-4149.02,0.00032328,2]
[311091147,1704901871668,-500.0,0.00032328,2]
[311091148,1704901871679,-500.0,0.00032328,2]
[311091149,1704901871689,-500.0,0.00032328,2]
[311091150,1704901871699,-588.0,0.00032328,2]
[311091151,1704901871710,-1144.17,0.00032328,2]
[311091152,1704901871720,-500.0,0.00032328,2]
[311091153,1704901871730,-1384.54,0.00032328,2]
[311091154,1704901871741,-2853.73,0.00032328,2]
[311091155,1704901871751,-1585.1,0.00032328,2]
[311091156,1704901871761,-565.73,0.00032328,2]
[311091157,1704901871772,-518.12,0.00032328,2]
[311091158,1704901871782,-546.42,0.00032328,2]
[311091159,1704901871792,-500.0,0.00032328,2]
[311091160,1704901871801,-5771.71,0.00032328,2]
[311091161,1704901871812,-500.0,0.00032328,2]
[311091162,1704901871822,-1094.06,0.00032328,2]
[311091163,1704901871833,-1075.13,0.00032328,2]
[311091164,1704901871843,-500.0,0.00032328,2]
[311091165,1704901871853,-500.0,0.00032328,2]
[311091166,1704901871863,-1529.8,0.00032328,2]
[311091167,1704901871874,-704.92,0.00032328,2]
[311091168,1704901871884,-6554.84,0.00032328,2]
[311091169,1704901871894,-500.0,0.00032328,2]
[311091170,1704901871903,-500.0,0.00032328,2]
[311091171,1704901871914,-500.0,0.00032328,2]
[311091172,1704901871923,-515.73,0.00032328,2]
[311091173,1704901871933,-606.81,0.00032328,2]
[311091174,1704901871943,-3847.89,0.00032328,2]
[311091175,1704901871953,-1237.27,0.00032328,2]
[311091176,1704901871962,-1873.06,0.00032328,2]
[311091177,1704901871974,-500.0,0.00032328,2]
[311091178,1704901872037,-476.00250039,0.00032328,2]
[311091179,1704901872047,-722.18,0.00032328,2]
[311091180,1704901872058,-682.55,0.00032328,2]
[311091181,1704901872070,-890.2,0.00032328,2]
[311091182,1704901872080,-1162.53,0.00032328,2]
[311091183,1704901872090,-500.0,0.00032328,2]
[311091184,1704901872100,-500.0,0.00032328,2]
[311091185,1704901872110,-1171.63,0.00032328,2]
[311091186,1704901872120,-589.12,0.00032328,2]
[311091187,1704901872130,-1149.89,0.00032328,2]
[311091188,1704901872141,-838.5,0.00032328,2]
[311091189,1704901872151,-1201.37,0.00032328,2]
[311091190,1704901872161,-1798.18,0.00032328,2]
[311091191,1704901872171,-596.51,0.00032328,2]
[311091192,1704901872182,-1002.66,0.00032328,2]
[311091193,1704901872192,-1893.93,0.00032328,2]
[311091194,1704901872202,-860.47,0.00032328,2]
[311091195,1704901872212,-500.0,0.00032328,2]
[311091196,1704901872221,-633.99,0.00032328,2]
[311091197,1704901872232,-542.38,0.00032328,2]
[311091198,1704901872241,-3386.41,0.00032328,2]
[311091199,1704901872252,-756.19,0.00032328,2]
[311091200,1704901872261,-500.0,0.00032328,2]
[311091201,1704901872273,-500.0,0.00032328,2]
[311091202,1704901872283,-816.45,0.00032328,2]
[311091203,1704901872293,-3242.4,0.00032328,2]
[311091204,1704901872304,-500.0,0.00032328,2]
[311091205,1704901872314,-500.0,0.00032328,2]
[311091206,1704901872324,-1694.82,0.00032328,2]
[311091207,1704901872334,-500.0,0.00032328,2]
[311091208,1704901872344,-1281.58,0.00032328,2]
[311091209,1704901872355,-259.19354435,0.00032328,2]
[311091210,1704901872364,-150.0,0.00032397,7]
[311091211,1704901872374,-151.0,0.00032484,120]
[311091212,1704901872384,-500.0,0.00032484,2]
[311091213,1704901872394,-450.0,0.000325,3]
[311091214,1704901872404,-450.0,0.000325,3]
[311091215,1704901872414,-300.0,0.000325,5]
[311091216,1704901872425,-247.22115209,0.00032502,2]
[311091217,1704901872437,-69618.6297271,0.00032555,2]
[311091218,1704901872447,-884.8261845,0.00032555,2]
[311091219,1704901872457,-1371555.55461099,0.00032574,2]
[311091220,1704901872467,-124536.872904,0.00032574,2]
[311091221,1704901872477,-1000.0,0.00032579,7]
[311091222,1704901872487,-1000.0,0.00032579,7]
[311091223,1704901872498,-1000.0,0.00032579,7]
[311091224,1704901872508,-1000.0,0.00032579,7]
[311091225,1704901872521,-1000.0,0.00032579,7]
[311091226,1704901872532,-1000.0,0.00032579,7]
[311091227,1704901872542,-1000.0,0.00032579,7]
[311091228,1704901872553,-1000.0,0.00032579,7]
[311091229,1704901872563,-1000.0,0.00032579,7]
[311091230,1704901872574,-3313.43448499,0.00032579,7]
[311091231,1704901872585,-1000.0,0.00032579,7]
[311091232,1704901872595,-1000.0,0.00032579,7]
[311091233,1704901872605,-4842.30378918,0.00032579,7]
[311091234,1704901872615,-1000.0,0.00032579,7]
[311091235,1704901872625,-1000.0,0.00032579,7]
[311091236,1704901872635,-2033.80621863,0.00032579,4]
[311091237,1704901872646,-3216.8253433,0.00032579,7]
[311091238,1704901872655,-1000.0,0.00032579,7]
[311091239,1704901872666,-1000.0,0.00032579,7]
[311091240,1704901872676,-9837.22211627,0.00032579,7]
[311091241,1704901872685,-10147.51617734,0.00032579,7]
[311091242,1704901872695,-7475.12780197,0.00032579,7]
[311091243,1704901872705,-8181.11393619,0.00032579,7]
[311091244,1704901872715,-1000.0,0.00032579,7]
[311091245,1704901872726,-6469.08271207,0.00032579,7]
[311091246,1704901872735,-1000.0,0.00032579,7]
[311091247,1704901872745,-1000.0,0.00032579,7]
[311091248,1704901872755,-7907.29826708,0.00032579,7]
[311091249,1704901872766,-7690.8082897,0.00032579,7]
[311091250,1704901872776,-4885.67923574,0.00032579,7]
[311091251,1704901872786,-2772.9348395,0.0003258,2]
[311091252,1704901872795,-200.0,0.000326,9]
[311091253,1704901872804,-151.0,0.00032602,7]
[311091254,1704901872814,-207.210858,0.00032602,7]
[311091255,1704901872825,-151.0,0.00032602,7]
[311091256,1704901872834,-263.279856,0.00032602,7]
[311091257,1704901872844,-263.279856,0.00032602,7]
[311091258,1704901872854,-151.0,0.00032602,7]
[311091259,1704901872865,-151.0,0.00032602,7]
[311091260,1704901872874,-3903.948256,0.00032602,7]
[311091261,1704901872884,-3903.948256,0.00032602,7]
[311091262,1704901872894,-738.34,0.00032602,2]
[311091263,1704901872904,-649.73,0.00032602,2]
[311091264,1704901872914,-500.0,0.00032602,2]
[311091265,1704901872923,-500.0,0.00032602,2]
[311091266,1704901872932,-500.0,0.00032602,2]
[311091267,1704901872942,-500.0,0.00032602,2]
[311091268,1704901872951,-580.78,0.00032602,2]
[311091269,1704901872960,-500.0,0.00032602,2]
[311091270,1704901872970,-500.0,0.00032602,2]
[311091271,1704901872979,-500.0,0.00032602,2]
[311091272,1704901872989,-500.0,0.00032602,2]
[311091273,1704901872998,-500.0,0.00032602,2]
[311091274,1704901873008,-624.51,0.00032602,2]
[311091275,1704901873018,-769.6,0.00032602,2]
[311091276,1704901873028,-500.0,0.00032602,2]
[311091277,1704901873038,-646.9,0.00032602,2]
[311091278,1704901873048,-530.33,0.00032602,2]
[311091279,1704901873057,-815.38,0.00032602,2]
[311091280,1704901873067,-500.0,0.00032602,2]
[311091281,1704901873077,-536.36898354,0.00032602,2]
[311091282,1704901873086,-500.0,0.00032602,2]
[311091283,1704901873096,-500.0,0.00032602,2]
[311091284,1704901873106,-500.0,0.00032602,2]
[311091285,1704901873115,-603.48,0.00032602,2]
[311091286,1704901873124,-755.23,0.00032602,2]
[311091287,1704901873133,-500.0,0.00032602,2]
[311091288,1704901873142,-550.99,0.00032602,2]
[311091289,1704901873151,-500.0,0.00032602,2]
[311091290,1704901873161,-500.0,0.00032602,2]
[311091291,1704901873170,-500.0,0.00032602,2]
[311091292,1704901873179,-500.0,0.00032602,2]
[311091293,1704901873189,-500.0,0.00032602,2]
[311091294,1704901873198,-500.0,0.00032602,2]
[311091295,1704901873207,-500.0,0.00032602,2]
[311091296,1704901873216,-500.0,0.00032602,2]
[311091297,1704901873226,-800.14,0.00032602,2]
[311091298,1704901873236,-500.0,0.00032602,2]
[311091299,1704901873245,-500.0,0.00032602,2]
[311091300,1704901873255,-707.25,0.00032602,2]
[311091301,1704901873266,-520.54,0.00032602,2]
[311091302,1704901873276,-500.0,0.00032602,2]
[311091303,1704901873286,-500.0,0.00032602,2]
[311091304,1704901873295,-500.0,0.00032602,2]
[311091305,1704901873305,-672.75,0.00032602,2]
[311091306,1704901873314,-528.46,0.00032602,2]
[311091307,1704901873323,-500.0,0.00032602,2]
[311091308,1704901873333,-500.0,0.00032602,2]
[311091309,1704901873343,-500.0,0.00032602,2]
[311091310,1704901873352,-1198.47,0.00032602,2]
[311091311,1704901873361,-500.0,0.00032602,2]
[311091312,1704901873370,-632.59,0.00032602,2]
[311091313,1704901873379,-1056.6,0.00032602,2]
[311091314,1704901873387,-500.0,0.00032602,2]
[311091315,1704901873397,-500.0,0.00032602,2]
[311091316,1704901873407,-500.0,0.00032602,2]
[311091317,1704901873416,-500.0,0.00032602,2]
[311091318,1704901873425,-500.0,0.00032602,2]
[311091319,1704901873434,-500.0,0.00032602,2]
[311091320,1704901873443,-500.0,0.00032602,2]
[311091321,1704901873453,-586.76,0.00032602,2]
[311091322,1704901873462,-731.92,0.00032602,2]
[311091323,1704901873471,-9210.75,0.00032602,2]
[311091324,1704901873481,-500.0,0.00032602,2]
[311091325,1704901873491,-405.10628468,0.00032602,2]
[311091326,1704901873500,-500.0,0.00032602,2]
[311091327,1704901873510,-809.77,0.00032602,2]
[311091328,1704901873520,-663.73,0.00032602,2]
[311091329,1704901873531,-500.0,0.00032602,2]
[311091330,1704901873540,-662.54,0.00032602,2]
[311091331,1704901873550,-500.0,0.00032602,2]
[311091332,1704901873559,-500.0,0.00032602,2]
[311091333,1704901873568,-534.71,0.00032602,2]
[311091334,1704901873578,-6627.1,0.00032602,2]
[311091335,1704901873587,-500.0,0.00032602,2]
[311091336,1704901873596,-1891.17,0.00032602,2]
[311091337,1704901873606,-1534.85,0.00032602,2]
[311091338,1704901873615,-500.0,0.00032602,2]
[311091339,1704901873624,-2924.88,0.00032602,2]
[311091340,1704901873634,-500.0,0.00032602,2]
[311091341,1704901873644,-500.0,0.00032602,2]
[311091342,1704901873654,-500.0,0.00032602,2]
[311091343,1704901873664,-373.66657132,0.00032602,2]
[311091344,1704901873673,-765.82,0.00032602,2]
[311091345,1704901873684,-500.0,0.00032602,2]
[311091346,1704901873694,-500.0,0.00032602,2]
[311091347,1704901873704,-3449.62,0.00032602,2]
[311091348,1704901873713,-500.0,0.00032602,2]
[311091349,1704901873723,-750.66,0.00032602,2]
[311091350,1704901873732,-579.7,0.00032602,2]
[311091351,1704901873742,-959.31,0.00032602,2]
[311091352,1704901873752,-500.0,0.00032602,2]
[311091353,1704901873761,-7311.05,0.00032602,2]
[311091354,1704901873773,-1065.45,0.00032602,2]
[311091355,1704901873783,-1035.64,0.00032602,2]
[311091356,1704901873792,-500.0,0.00032602,2]
[311091357,1704901873801,-500.0,0.00032602,2]
[311091358,1704901873811,-500.0,0.00032602,2]
[311091359,1704901873821,-500.0,0.00032602,2]
[311091360,1704901873830,-2187.38,0.00032602,2]
[311091361,1704901873840,-500.0,0.00032602,2]
[311091362,1704901873849,-702.32,0.00032602,2]
[311091363,1704901873860,-500.0,0.00032602,2]
[311091364,1704901873871,-500.0,0.00032602,2]
[311091365,1704901873880,-500.0,0.00032602,2]
[311091366,1704901873889,-500.0,0.00032602,2]
[311091367,1704901873899,-1173.1,0.00032602,2]
[311091368,1704901873909,-977.57,0.00032602,2]
[311091369,1704901873920,-500.0,0.00032602,2]
[311091370,1704901873930,-500.0,0.00032602,2]
[311091371,1704901873940,-500.0,0.00032602,2]
[311091372,1704901873949,-905.27,0.00032602,2]
[311091373,1704901873960,-2184.67,0.00032602,2]
[311091374,1704901873972,-539.72,0.00032602,2]
[311091375,1704901873984,-500.0,0.00032602,2]
[311091376,1704901873993,-554.29,0.00032602,2]
[311091377,1704901874003,-2851.32,0.00032602,2]
[311091378,1704901874015,-500.0,0.00032602,2]
[311091379,1704901874024,-1084.11,0.00032602,2]
[311091380,1704901874034,-743.97,0.00032602,2]
[311091381,1704901874044,-2290.02,0.00032602,2]
[311091382,1704901874053,-500.0,0.00032602,2]
[311091383,1704901874064,-652.69,0.00032602,2]
[311091384,1704901874075,-3550.06,0.00032602,2]
[311091385,1704901874085,-500.0,0.00032602,2]
[311091386,1704901874094,-500.0,0.00032602,2]
[311091387,1704901874109,-2468.23,0.00032602,2]
[311091388,1704901874118,-741.58,0.00032602,2]
[311091389,1704901874128,-1013.12,0.00032602,2]
[311091390,1704901874146,-2755.49,0.00032602,2]
[311091391,1704901874155,-1367.5,0.00032602,2]
[311091392,1704901874166,-500.0,0.00032602,2]
[311091393,1704901874178,-523.18,0.00032602,2]
[311091394,1704901874187,-606.41,0.00032602,2]
[311091395,1704901874198,-1010.49,0.00032602,2]
[311091396,1704901874210,-1214.0,0.00032602,2]
[311091397,1704901874220,-500.0,0.00032602,2]
[311091398,1704901874230,-500.0,0.00032602,2]